lending/lending_fUSD_20260110
["ID","MTS","AMOUNT","RATE_DAILY","PERIOD"]
[401195541,1768036246609,-216.87423394,0.00016945,2]
[401195542,1768036246619,-229.31905987,0.00016945,2]
[401195543,1768036246628,-178.71892515,0.00016945,2]
[401195544,1768036246639,-150.0,0.00016962,2]
[401195545,1768036246649,-189.54348929,0.00016964,2]
[401195546,1768036246658,-255.68743637,0.00016964,2]
[401195547,1768036246668,-263.75602621,0.00016964,2]
[401195548,1768036246678,-216.87423394,0.00016964,2]
[401195549,1768036246687,-229.31905987,0.00016964,2]
[401195550,1768036246697,-178.71892515,0.00016964,2]
[401195551,1768036246707,-150.0,0.00016967,2]
[401195552,1768036246717,-166.67,0.00016976,2]
[401195553,1768036246726,-150.0,0.00016977,2]
[401195554,1768036246736,-189.54348929,0.00016982,2]
[401195555,1768036246746,-255.68743637,0.00016982,2]
[401195556,1768036246756,-263.75602621,0.00016982,2]
[401195557,1768036246765,-216.87423394,0.00016982,2]
[401195558,1768036246775,-229.31905987,0.00016982,2]
[401195559,1768036246785,-178.71892515,0.00016982,2]
[401195560,1768036246795,-2523.0,0.00016983,2]
[401195561,1768036246804,-600.0,0.00016986,2]
[401195562,1768036246814,-150.0,0.00016987,2]
[401195563,1768036246824,-150.0,0.00016996,2]
[401195564,1768036246833,-150.0,0.00016997,2]
[401195565,1768036246844,-189.54348929,0.00017,2]
[401195566,1768036246854,-255.68743637,0.00017,2]
[401195567,1768036246863,-263.75602621,0.00017,2]
[401195568,1768036246873,-150.0,0.00017,2]
[401195569,1768036246883,-216.87423394,0.00017,2]
[401195570,1768036246893,-150.0,0.00017,2]
[401195571,1768036246903,-229.31905987,0.00017,2]
[401195572,1768036246912,-150.0,0.00017,2]
[401195573,1768036246922,-178.71892515,0.00017,2]
[401195574,1768036246932,-250.0,0.00017,2]
[401195575,1768036246942,-290.47234924,0.00017002,2]
[401195576,1768036246951,-322.6107,0.00017002,2]
[401195577,1768036246961,-1000.0,0.00017002,2]
[401195578,1768036246971,-250.0,0.00017002,2]
[401195579,1768036246981,-623.58710448,0.00017002,2]
[401195580,1768036246991,-8260.13072239,0.00017002,2]
[401195581,1768036247001,-998.0,0.00017002,2]
[401195582,1768036247011,-496.47127164,0.00017002,2]
[401195583,1768036247021,-500.0,0.00017002,2]
[401195584,1768036247030,-250.0,0.00017002,2]
[401195585,1768036247040,-1000.0,0.00017002,2]
[401195586,1768036247050,-151.0,0.00017002,2]
[401195587,1768036247059,-500.0,0.00017002,2]
[401195588,1768036247069,-1000.0,0.00017002,2]
[401195589,1768036247079,-265.93998841,0.00017002,2]
[401195590,1768036247088,-1000.0,0.00017002,2]
[401195591,1768036247097,-500.0,0.00017002,2]
[401195592,1768036247107,-500.0,0.00017002,2]
[401195593,1768036247116,-1000.0,0.00017002,2]
[401195594,1768036247126,-500.0,0.00017002,2]
[401195595,1768036247136,-1000.0,0.00017002,2]
[401195596,1768036247146,-500.0,0.00017002,2]
[401195597,1768036247155,-1000.0,0.00017002,2]
[401195598,1768036247165,-500.0,0.00017002,2]
[401195599,1768036247174,-1000.0,0.00017002,2]
[401195600,1768036247184,-500.0,0.00017002,2]
[401195601,1768036247193,-1000.0,0.00017002,2]
[401195602,1768036247203,-500.0,0.00017002,2]
[401195603,1768036247213,-1000.0,0.00017002,2]
[401195604,1768036247223,-500.0,0.00017002,2]
[401195605,1768036247233,-1000.0,0.00017002,2]
[401195606,1768036247242,-500.0,0.00017002,2]
[401195607,1768036247252,-1000.0,0.00017002,2]
[401195608,1768036247262,-500.0,0.00017002,2]
[401195609,1768036247272,-181.08010149,0.00017002,2]
[401195610,1768036247282,-1000.0,0.00017002,2]
[401195611,1768036247291,-500.0,0.00017002,2]
[401195612,1768036247306,-1000.0,0.00017002,2]
[401195613,1768036247315,-500.0,0.00017002,2]
[401195614,1768036247325,-1000.0,0.00017002,2]
[401195615,1768036247335,-500.0,0.00017002,2]
[401195616,1768036247348,-151.0,0.00017002,2]
[401195617,1768036247358,-151.0,0.00017002,2]
[401195618,1768036247371,-157.48868544,0.00017002,2]
[401195619,1768036247381,-250.0,0.00017002,2]
[401195620,1768036247392,-250.0,0.00017002,2]
[401195621,1768036247403,-267.33747462,0.00017002,2]
[401195622,1768036247421,-250.0,0.00017002,2]
[401195623,1768036247430,-181.08010149,0.00017002,2]
[401195624,1768036247440,-500.0,0.00017002,2]
[401195625,1768036247450,-250.0,0.00017002,2]
[401195626,1768036247461,-500.0,0.00017002,2]
[401195627,1768036247470,-250.0,0.00017002,2]
[401195628,1768036247480,-500.0,0.00017002,2]
[401195629,1768036247490,-250.0,0.00017002,2]
[401195630,1768036247500,-500.0,0.00017002,2]
[401195631,1768036247510,-250.0,0.00017002,2]
[401195632,1768036247519,-500.0,0.00017002,2]
[401195633,1768036247530,-250.0,0.00017002,2]
[401195634,1768036247541,-500.0,0.00017002,2]
[401195635,1768036247550,-250.0,0.00017002,2]
[401195636,1768036247560,-250.0,0.00017002,2]
[401195637,1768036247571,-500.0,0.00017002,2]
[401195638,1768036247582,-250.0,0.00017002,2]
[401195639,1768036247594,-250.0,0.00017002,2]
[401195640,1768036247605,-500.0,0.00017002,2]
[401195641,1768036247617,-262.27490419,0.00017002,2]
[401195642,1768036247631,-250.0,0.00017002,2]
[401195643,1768036247646,-2000.0,0.00017002,2]
[401195644,1768036247665,-500.0,0.00017002,2]
[401195645,1768036247678,-250.0,0.00017002,2]
[401195646,1768036247689,-2000.0,0.00017002,2]
[401195647,1768036247698,-500.0,0.00017002,2]
[401195648,1768036247709,-250.0,0.00017002,2]
[401195649,1768036247720,-2000.0,0.00017002,2]
[401195650,1768036247730,-500.0,0.00017002,2]
[401195651,1768036247739,-250.0,0.00017002,2]
[401195652,1768036247748,-2000.0,0.00017002,2]
[401195653,1768036247758,-500.0,0.00017002,2]
[401195654,1768036247767,-250.0,0.00017002,2]
[401195655,1768036247777,-2000.0,0.00017002,2]
[401195656,1768036247787,-500.0,0.00017002,2]
[401195657,1768036247797,-2000.0,0.00017002,2]
[401195658,1768036247806,-250.0,0.00017002,2]
[401195659,1768036247816,-500.0,0.00017002,2]
[401195660,1768036247826,-250.0,0.00017002,2]
[401195661,1768036247837,-2000.0,0.00017002,2]
[401195662,1768036247846,-250.0,0.00017002,2]
[401195663,1768036247856,-250.0,0.00017002,2]
[401195664,1768036247866,-500.0,0.00017002,2]
[401195665,1768036247876,-2000.0,0.00017002,2]
[401195666,1768036247886,-262.0209475,0.00017002,2]
[401195667,1768036247896,-2000.0,0.00017002,2]
[401195668,1768036247906,-2000.0,0.00017002,2]
[401195669,1768036247916,-2000.0,0.00017002,2]
[401195670,1768036247926,-525.94323817,0.00017002,2]
[401195671,1768036247936,-250.0,0.00017002,2]
[401195672,1768036248026,-250.0,0.00017002,2]
[401195673,1768036248036,-268.55828979,0.00017002,2]
[401195674,1768036248045,-187.78006525,0.00017002,2]
[401195675,1768036248055,-724.98153853,0.00017002,2]
[401195676,1768036248064,-8117.0,0.00017013,2]
[401195677,1768036248075,-189.54348929,0.00017018,2]
[401195678,1768036248084,-255.68743637,0.00017018,2]
[401195679,1768036248094,-263.75602621,0.00017018,2]
[401195680,1768036248103,-216.87423394,0.00017018,2]
[401195681,1768036248113,-229.31905987,0.00017018,2]
[401195682,1768036248122,-150.0,0.00017018,2]
[401195683,1768036248132,-178.71892515,0.00017018,2]
[401195684,1768036248142,-150.0,0.00017026,2]
[401195685,1768036248151,-150.0,0.00017031,2]
[401195686,1768036248160,-189.54348929,0.00017036,2]
[401195687,1768036248170,-255.68743637,0.00017036,2]
[401195688,1768036248180,-263.75602621,0.00017036,2]
[401195689,1768036248189,-216.87423394,0.00017036,2]
[401195690,1768036248199,-229.31905987,0.00017036,2]
[401195691,1768036248209,-178.71892515,0.00017036,2]
[401195692,1768036248218,-4533.82259132,0.00017047,2]
[401195693,1768036248227,-2269.0736958,0.00017047,2]
[401195694,1768036248237,-189.54348929,0.00017055,2]
[401195695,1768036248247,-255.68743637,0.00017055,2]
[401195696,1768036248256,-263.75602621,0.00017055,2]
[401195697,1768036248266,-216.87423394,0.00017055,2]
[401195698,1768036248276,-229.31905987,0.00017055,2]
[401195699,1768036248285,-178.71892515,0.00017055,2]
[401195700,1768036248295,-150.0,0.00017056,2]
[401195701,1768036248304,-500.0,0.00017056,2]
[401195702,1768036248313,-8565.75555911,0.00017057,2]
[401195703,1768036248323,-150.0,0.00017059,2]
[401195704,1768036248333,-150.0,0.00017065,2]
[401195705,1768036248343,-150.0,0.00017067,2]
[401195706,1768036248353,-189.54348929,0.00017073,2]
[401195707,1768036248364,-255.68743637,0.00017073,2]
[401195708,1768036248374,-263.75602621,0.00017073,2]
[401195709,1768036248384,-216.87423394,0.00017073,2]
[401195710,1768036248393,-229.31905987,0.00017073,2]
[401195711,1768036248402,-178.71892515,0.00017073,2]
[401195712,1768036248412,-150.0,0.00017085,2]
[401195713,1768036248422,-189.54348929,0.00017091,2]
[401195714,1768036248432,-255.68743637,0.00017091,2]
[401195715,1768036248442,-263.75602621,0.00017091,2]
[401195716,1768036248452,-216.87423394,0.00017091,2]
[401195717,1768036248462,-229.31905987,0.00017091,2]
[401195718,1768036248471,-178.71892515,0.00017091,2]
[401195719,1768036248480,-150.0,0.000171,2]
[401195720,1768036248490,-150.0,0.000171,2]
[401195721,1768036248500,-150.0,0.000171,2]
[401195722,1768036248510,-150.0,0.000171,2]
[401195723,1768036248520,-1069.8949683,0.000171,2]
[401195724,1768036248530,-160.88728799,0.000171,2]
[401195725,1768036248540,-189.54348929,0.00017109,2]
[401195726,1768036248550,-255.68743637,0.00017109,2]
[401195727,1768036248559,-263.75602621,0.00017109,2]
[401195728,1768036248570,-216.87423394,0.00017109,2]
[401195729,1768036248579,-229.31905987,0.00017109,2]
[401195730,1768036248590,-178.71892515,0.00017109,2]
[401195731,1768036248600,-8882.6885148,0.00017112,2]
[401195732,1768036248610,-150.0,0.00017115,2]
[401195733,1768036248620,-189.54348929,0.00017127,2]
[401195734,1768036248629,-255.68743637,0.00017127,2]
[401195735,1768036248643,-263.75602621,0.00017127,2]
[401195736,1768036248653,-216.87423394,0.00017127,2]
[401195737,1768036248662,-229.31905987,0.00017127,2]
[401195738,1768036248672,-178.71892515,0.00017127,2]
[401195739,1768036248682,-150.0,0.00017133,2]
[401195740,1768036248691,-150.0,0.00017135,2]
[401195741,1768036248701,-150.0,0.00017141,2]
[401195742,1768036248711,-150.0,0.00017144,2]
[401195743,1768036248722,-189.54348929,0.00017145,2]
[401195744,1768036248731,-255.68743637,0.00017145,2]
[401195745,1768036248741,-263.75602621,0.00017145,2]
[401195746,1768036248752,-216.87423394,0.00017145,2]
[401195747,1768036248761,-229.31905987,0.00017145,2]
[401195748,1768036248771,-178.71892515,0.00017145,2]
[401195749,1768036248780,-189.54348929,0.00017164,2]
[401195750,1768036248790,-255.68743637,0.00017164,2]
[401195751,1768036248800,-263.75602621,0.00017164,2]
[401195752,1768036248810,-216.87423394,0.00017164,2]
[401195753,1768036248820,-229.31905987,0.00017164,2]
[401195754,1768036248829,-178.71892515,0.00017164,2]
[401195755,1768036248839,-805.55508344,0.00017167,2]
[401195756,1768036248849,-150.0,0.00017169,2]
[401195757,1768036248859,-150.0,0.00017174,2]
[401195758,1768036248870,-189.54348929,0.00017182,2]
[401195759,1768036248882,-255.68743637,0.00017182,2]
[401195760,1768036248902,-263.75602621,0.00017182,2]
[401195761,1768036248912,-216.87423394,0.00017182,2]
[401195762,1768036248922,-229.31905987,0.00017182,2]
[401195763,1768036248932,-150.0,0.00017182,2]
[401195764,1768036248941,-178.71892515,0.00017182,2]
[401195765,1768036248951,-561.2,0.0001719,2]
[401195766,1768036248961,-189.54348929,0.000172,2]
[401195767,1768036248971,-255.68743637,0.000172,2]
[401195768,1768036248980,-263.75602621,0.000172,2]
[401195769,1768036248990,-150.0,0.000172,2]
[401195770,1768036249000,-216.87423394,0.000172,2]
[401195771,1768036249010,-150.0,0.000172,2]
[401195772,1768036249019,-229.31905987,0.000172,2]
[401195773,1768036249029,-150.0,0.000172,2]
[401195774,1768036249038,-178.71892515,0.000172,2]
[401195775,1768036249048,-150.0,0.00017203,2]
[401195776,1768036249058,-150.0,0.00017204,2]
[401195777,1768036249068,-150.0,0.00017212,2]
[401195778,1768036249078,-11824.9917371,0.00017217,2]
[401195779,1768036249087,-189.54348929,0.00017218,2]
[401195780,1768036249098,-255.68743637,0.00017218,2]
[401195781,1768036249108,-263.75602621,0.00017218,2]
[401195782,1768036249117,-216.87423394,0.00017218,2]
[401195783,1768036249127,-229.31905987,0.00017218,2]
[401195784,1768036249137,-178.71892515,0.00017218,2]
[401195785,1768036249146,-150.0,0.00017223,2]
[401195786,1768036249155,-150.0,0.00017233,2]
[401195787,1768036249165,-189.54348929,0.00017236,2]
[401195788,1768036249175,-255.68743637,0.00017236,2]
[401195789,1768036249185,-263.75602621,0.00017236,2]
[401195790,1768036249195,-216.87423394,0.00017236,2]
[401195791,1768036249204,-229.31905987,0.00017236,2]
[401195792,1768036249214,-178.71892515,0.00017236,2]
[401195793,1768036249223,-150.0,0.00017238,2]
[401195794,1768036249233,-189.54348929,0.00017255,2]
[401195795,1768036249242,-255.68743637,0.00017255,2]
[401195796,1768036249251,-263.75602621,0.00017255,2]
[401195797,1768036249262,-216.87423394,0.00017255,2]
[401195798,1768036249271,-229.31905987,0.00017255,2]
[401195799,1768036249281,-178.71892515,0.00017255,2]
[401195800,1768036249291,-150.0,0.00017262,2]
[401195801,1768036249300,-150.0,0.00017264,2]
[401195802,1768036249310,-561.2,0.00017264,2]
[401195803,1768036249320,-150.0,0.00017267,2]
[401195804,1768036249331,-189.54348929,0.00017273,2]
[401195805,1768036249340,-255.68743637,0.00017273,2]
[401195806,1768036249350,-263.75602621,0.00017273,2]
[401195807,1768036249360,-216.87423394,0.00017273,2]
[401195808,1768036249369,-229.31905987,0.00017273,2]
[401195809,1768036249379,-178.71892515,0.00017273,2]
[401195810,1768036249388,-150.0,0.00017273,2]
[401195811,1768036249398,-150.0,0.0001728,2]
[401195812,1768036249410,-189.54348929,0.00017291,2]
[401195813,1768036249420,-255.68743637,0.00017291,2]
[401195814,1768036249431,-263.75602621,0.00017291,2]
[401195815,1768036249443,-216.87423394,0.00017291,2]
[401195816,1768036249452,-229.31905987,0.00017291,2]
[401195817,1768036249461,-178.71892515,0.00017291,2]
[401195818,1768036249471,-150.0,0.00017292,2]
[401195819,1768036249481,-159.16121496,0.00017293,2]
[401195820,1768036249491,-150.0,0.00017305,2]
[401195821,1768036249501,-150.0,0.00017308,2]
[401195822,1768036249511,-189.54348929,0.00017309,2]
[401195823,1768036249521,-255.68743637,0.00017309,2]
[401195824,1768036249531,-263.75602621,0.00017309,2]
[401195825,1768036249542,-216.87423394,0.00017309,2]
[401195826,1768036249552,-229.31905987,0.00017309,2]
[401195827,1768036249562,-178.71892515,0.00017309,2]
[401195828,1768036249572,-150.0,0.00017321,2]
[401195829,1768036249582,-150.0,0.00017325,2]
[401195830,1768036249591,-189.54348929,0.00017327,2]
[401195831,1768036249600,-255.68743637,0.00017327,2]
[401195832,1768036249610,-263.75602621,0.00017327,2]
[401195833,1768036249624,-216.87423394,0.00017327,2]
[401195834,1768036249637,-229.31905987,0.00017327,2]
[401195835,1768036249648,-178.71892515,0.00017327,2]
[401195836,1768036249658,-4533.82259132,0.00017331,2]
[401195837,1768036249668,-2269.0736958,0.00017331,2]
[401195838,1768036249679,-150.0,0.00017333,2]
[401195839,1768036249689,-561.2,0.00017337,2]
[401195840,1768036249699,-150.0,0.00017342,2]
[401195841,1768036249709,-189.54348929,0.00017345,2]
[401195842,1768036249720,-255.68743637,0.00017345,2]
[401195843,1768036249729,-263.75602621,0.00017345,2]
[401195844,1768036249739,-216.87423394,0.00017345,2]
[401195845,1768036249749,-229.31905987,0.00017345,2]
[401195846,1768036249758,-150.0,0.00017345,2]
[401195847,1768036249768,-178.71892515,0.00017345,2]
[401195848,1768036249778,-150.0,0.00017351,2]
[401195849,1768036249788,-164.0,0.0001736,2]
[401195850,1768036249798,-189.54348929,0.00017364,2]
[401195851,1768036249808,-255.68743637,0.00017364,2]
[401195852,1768036249818,-263.75602621,0.00017364,2]
[401195853,1768036249827,-216.87423394,0.00017364,2]
[401195854,1768036249837,-229.31905987,0.00017364,2]
[401195855,1768036249846,-178.71892515,0.00017364,2]
[401195856,1768036249856,-150.0,0.00017377,2]
[401195857,1768036249865,-425.0,0.00017379,2]
[401195858,1768036249875,-150.0,0.0001738,2]
[401195859,1768036249886,-189.54348929,0.00017382,2]
[401195860,1768036249895,-255.68743637,0.00017382,2]
[401195861,1768036249905,-263.75602621,0.00017382,2]
[401195862,1768036249916,-216.87423394,0.00017382,2]
[401195863,1768036249927,-229.31905987,0.00017382,2]
[401195864,1768036249936,-178.71892515,0.00017382,2]
[401195865,1768036249946,-150.0,0.00017386,2]
[401195866,1768036249955,-170.80877724,0.00017388,2]
[401195867,1768036249965,-189.54348929,0.000174,2]
[401195868,1768036249974,-255.68743637,0.000174,2]
[401195869,1768036249984,-263.75602621,0.000174,2]
[401195870,1768036249994,-150.0,0.000174,2]
[401195871,1768036250003,-150.0,0.000174,2]
[401195872,1768036250013,-216.87423394,0.000174,2]
[401195873,1768036250022,-150.0,0.000174,2]
[401195874,1768036250032,-229.31905987,0.000174,2]
[401195875,1768036250041,-150.0,0.000174,2]
[401195876,1768036250051,-150.0,0.000174,2]
[401195877,1768036250061,-178.71892515,0.000174,2]
[401195878,1768036250071,-150.0,0.0001741,2]
[401195879,1768036250080,-561.2,0.00017411,2]
[401195880,1768036250090,-150.0,0.00017412,2]
[401195881,1768036250099,-189.54348929,0.00017418,2]
[401195882,1768036250109,-255.68743637,0.00017418,2]
[401195883,1768036250119,-263.75602621,0.00017418,2]
[401195884,1768036250128,-216.87423394,0.00017418,2]
[401195885,1768036250138,-229.31905987,0.00017418,2]
[401195886,1768036250148,-178.71892515,0.00017418,2]
[401195887,1768036250157,-1000.0,0.00017427,2]
[401195888,1768036250167,-150.0,0.00017427,2]
[401195889,1768036250177,-189.54348929,0.00017436,2]
[401195890,1768036250187,-255.68743637,0.00017436,2]
[401195891,1768036250195,-263.75602621,0.00017436,2]
[401195892,1768036250205,-216.87423394,0.00017436,2]
[401195893,1768036250214,-229.31905987,0.00017436,2]
[401195894,1768036250224,-178.71892515,0.00017436,2]
[401195895,1768036250233,-150.0,0.00017437,2]
[401195896,1768036250242,-150.0,0.00017439,2]
[401195897,1768036250251,-150.0,0.00017446,2]
[401195898,1768036250261,-25536.1041115,0.00017451,2]
[401195899,1768036250271,-189.54348929,0.00017455,2]
[401195900,1768036250281,-255.68743637,0.00017455,2]
[401195901,1768036250291,-263.75602621,0.00017455,2]
[401195902,1768036250301,-216.87423394,0.00017455,2]
[401195903,1768036250310,-229.31905987,0.00017455,2]
[401195904,1768036250319,-178.71892515,0.00017455,2]
[401195905,1768036250329,-150.0,0.00017467,2]
[401195906,1768036250339,-150.0,0.00017468,2]
[401195907,1768036250349,-150.0,0.00017469,2]
[401195908,1768036250358,-189.54348929,0.00017473,2]
[401195909,1768036250369,-255.68743637,0.00017473,2]
[401195910,1768036250379,-263.75602621,0.00017473,2]
[401195911,1768036250389,-216.87423394,0.00017473,2]
[401195912,1768036250399,-229.31905987,0.00017473,2]
[401195913,1768036250408,-178.71892515,0.00017473,2]
[401195914,1768036250419,-150.0,0.00017481,2]
[401195915,1768036250429,-561.2,0.00017485,2]
[401195916,1768036250438,-189.54348929,0.00017491,2]
[401195917,1768036250448,-255.68743637,0.00017491,2]
[401195918,1768036250458,-263.75602621,0.00017491,2]
[401195919,1768036250468,-216.87423394,0.00017491,2]
[401195920,1768036250477,-229.31905987,0.00017491,2]
[401195921,1768036250487,-178.71892515,0.00017491,2]
[401195922,1768036250496,-150.0,0.00017498,2]
[401195923,1768036250506,-2000.0,0.000175,2]
[401195924,1768036250515,-425.0,0.00017503,2]
[401195925,1768036250525,-189.54348929,0.00017509,2]
[401195926,1768036250535,-255.68743637,0.00017509,2]
[401195927,1768036250544,-263.75602621,0.00017509,2]
[401195928,1768036250555,-216.87423394,0.00017509,2]
[401195929,1768036250565,-229.31905987,0.00017509,2]
[401195930,1768036250575,-150.0,0.00017509,2]
[401195931,1768036250585,-178.71892515,0.00017509,2]
[401195932,1768036250594,-150.0,0.00017515,2]
[401195933,1768036250604,-189.54348929,0.00017527,2]
[401195934,1768036250614,-255.68743637,0.00017527,2]
[401195935,1768036250623,-263.75602621,0.00017527,2]
[401195936,1768036250632,-216.87423394,0.00017527,2]
[401195937,1768036250646,-229.31905987,0.00017527,2]
[401195938,1768036250655,-178.71892515,0.00017527,2]
[401195939,1768036250665,-150.0,0.00017528,2]
[401195940,1768036250674,-150.0,0.00017533,2]
[401195941,1768036250684,-600.0,0.00017534,2]
[401195942,1768036250694,-168.0,0.00017539,2]
[401195943,1768036250703,-189.54348929,0.00017545,2]
[401195944,1768036250713,-255.68743637,0.00017545,2]
[401195945,1768036250723,-263.75602621,0.00017545,2]
[401195946,1768036250733,-216.87423394,0.00017545,2]
[401195947,1768036250743,-229.31905987,0.00017545,2]
[401195948,1768036250753,-178.71892515,0.00017545,2]
[401195949,1768036250763,-514.84070869,0.0001755,2]
[401195950,1768036250772,-187.78006525,0.0001755,2]
[401195951,1768036250781,-197.9969081,0.0001755,2]
[401195952,1768036250790,-150.0,0.0001755,2]
[401195953,1768036250799,-150.0,0.0001755,2]
[401195954,1768036250809,-150.0,0.0001755,2]
[401195955,1768036250819,-150.0,0.00017557,2]
[401195956,1768036250828,-561.2,0.00017558,2]
[401195957,1768036250838,-189.54348929,0.00017564,2]
[401195958,1768036250847,-255.68743637,0.00017564,2]
[401195959,1768036250858,-263.75602621,0.00017564,2]
[401195960,1768036250867,-216.87423394,0.00017564,2]
[401195961,1768036250877,-229.31905987,0.00017564,2]
[401195962,1768036250887,-178.71892515,0.00017564,2]
[401195963,1768036250896,-189.54348929,0.00017582,2]
[401195964,1768036250905,-255.68743637,0.00017582,2]
[401195965,1768036250916,-263.75602621,0.00017582,2]
[401195966,1768036250925,-216.87423394,0.00017582,2]
[401195967,1768036250935,-229.31905987,0.00017582,2]
[401195968,1768036250945,-178.71892515,0.00017582,2]
[401195969,1768036250954,-150.0,0.00017585,2]
[401195970,1768036250964,-150.0,0.00017587,2]
[401195971,1768036250974,-150.0,0.00017591,2]
[401195972,1768036250983,-4304.92943194,0.000176,2]
[401195973,1768036250993,-189.54348929,0.000176,2]
[401195974,1768036251002,-255.68743637,0.000176,2]
[401195975,1768036251012,-263.75602621,0.000176,2]
[401195976,1768036251022,-150.0,0.000176,2]
[401195977,1768036251032,-216.87423394,0.000176,2]
[401195978,1768036251042,-150.0,0.000176,2]
[401195979,1768036251052,-229.31905987,0.000176,2]
[401195980,1768036251061,-150.0,0.000176,2]
[401195981,1768036251071,-178.71892515,0.000176,2]
[401195982,1768036251081,-4533.82259132,0.00017616,2]
[401195983,1768036251091,-2269.0736958,0.00017616,2]
[401195984,1768036251100,-150.0,0.00017616,2]
[401195985,1768036251110,-189.54348929,0.00017618,2]
[401195986,1768036251120,-255.68743637,0.00017618,2]
[401195987,1768036251130,-263.75602621,0.00017618,2]
[401195988,1768036251140,-216.87423394,0.00017618,2]
[401195989,1768036251150,-229.31905987,0.00017618,2]
[401195990,1768036251160,-178.71892515,0.00017618,2]
[401195991,1768036251170,-150.0,0.00017619,2]
[401195992,1768036251180,-150.0,0.00017632,2]
[401195993,1768036251191,-561.2,0.00017632,2]
[401195994,1768036251202,-168.0,0.00017635,2]
[401195995,1768036251212,-189.54348929,0.00017636,2]
[401195996,1768036251221,-255.68743637,0.00017636,2]
[401195997,1768036251231,-263.75602621,0.00017636,2]
[401195998,1768036251241,-216.87423394,0.00017636,2]
[401195999,1768036251251,-229.31905987,0.00017636,2]
[401196000,1768036251261,-178.71892515,0.00017636,2]
[401196001,1768036251270,-150.0,0.0001764,2]
[401196002,1768036251280,-10537.80982193,0.0001764,2]
[401196003,1768036251291,-150.0,0.00017646,2]
[401196004,1768036251301,-1000.0,0.00017647,2]
[401196005,1768036251310,-150.0,0.00017654,2]
[401196006,1768036251320,-189.54348929,0.00017655,2]
[401196007,1768036251330,-255.68743637,0.00017655,2]
[401196008,1768036251339,-263.75602621,0.00017655,2]
[401196009,1768036251349,-216.87423394,0.00017655,2]
[401196010,1768036251359,-229.31905987,0.00017655,2]
[401196011,1768036251369,-178.71892515,0.00017655,2]
[401196012,1768036251380,-150.0,0.00017662,2]
[401196013,1768036251390,-150.0,0.00017667,2]
[401196014,1768036251401,-429.31,0.00017668,2]
[401196015,1768036251411,-189.54348929,0.00017673,2]
[401196016,1768036251422,-255.68743637,0.00017673,2]
[401196017,1768036251432,-263.75602621,0.00017673,2]
[401196018,1768036251442,-216.87423394,0.00017673,2]
[401196019,1768036251452,-229.31905987,0.00017673,2]
[401196020,1768036251462,-150.0,0.00017673,2]
[401196021,1768036251472,-178.71892515,0.00017673,2]
[401196022,1768036251482,-150.0,0.00017675,2]
[401196023,1768036251492,-1000.0,0.00017676,2]
[401196024,1768036251502,-150.0,0.00017688,2]
[401196025,1768036251512,-1000.0,0.0001769,2]
[401196026,1768036251522,-189.54348929,0.00017691,2]
[401196027,1768036251532,-255.68743637,0.00017691,2]
[401196028,1768036251542,-263.75602621,0.00017691,2]
[401196029,1768036251552,-216.87423394,0.00017691,2]
[401196030,1768036251562,-229.31905987,0.00017691,2]
[401196031,1768036251572,-178.71892515,0.00017691,2]
[401196032,1768036251582,-150.0,0.000177,2]
[401196033,1768036251592,-1000.0,0.000177,2]
[401196034,1768036251602,-150.0,0.00017705,2]
[401196035,1768036251612,-561.2,0.00017705,2]
[401196036,1768036251621,-189.54348929,0.00017709,2]
[401196037,1768036251631,-255.68743637,0.00017709,2]
[401196038,1768036251644,-263.75602621,0.00017709,2]
[401196039,1768036251654,-216.87423394,0.00017709,2]
[401196040,1768036251664,-229.31905987,0.00017709,2]